[Event "Early-Titled-Tuesday-Blitz-February-06-2024"]
[Site "Chess.com"]
[Date "2024.02.06"]
[Round "3"]
[White "KbzasDavid16"]
[Black "Rosh1610"]
[Result "1-0"]
[WhiteElo "2564"]
[BlackElo "2361"]
[TimeControl "180+1"]
[EndTime "8:29:14 PST"]
[Termination "KbzasDavid16 won by checkmate"]

1. d4 {[%clk 0:03:00.9]} 1... Nf6 {[%clk 0:02:59.1]} 2. c4 {[%clk 0:03:00.9]}
2... e6 {[%clk 0:02:58.7]} 3. Nf3 {[%clk 0:03:01.1]} 3... d5 {[%clk 0:02:57.4]}
4. g3 {[%clk 0:03:00.7]} 4... dxc4 {[%clk 0:02:54.7]} 5. Bg2 {[%clk 0:02:55.4]}
5... Nc6 {[%clk 0:02:38.1]} 6. O-O {[%clk 0:02:52.9]} 6... Rb8 {[%clk
0:02:32.2]} 7. Nc3 {[%clk 0:02:29.3]} 7... Be7 {[%clk 0:02:19.9]} 8. Qa4 {[%clk
0:02:06.4]} 8... O-O {[%clk 0:02:19.1]} 9. Qxc4 {[%clk 0:02:05.6]} 9... Na5
{[%clk 0:02:16.1]} 10. Qa4 {[%clk 0:01:56.7]} 10... Bd7 {[%clk 0:02:16]} 11.
Qxa5 {[%clk 0:01:46.1]} 11... b6 {[%clk 0:02:14.2]} 12. Qg5 {[%clk 0:01:30]}
12... Ne4 {[%clk 0:02:06.1]} 13. Qe3 {[%clk 0:01:28.3]} 13... Nxc3 {[%clk
0:02:05.4]} 14. Qxc3 {[%clk 0:01:27.8]} 14... c5 {[%clk 0:02:04.5]} 15. dxc5
{[%clk 0:01:26.2]} 15... Bxc5 {[%clk 0:02:04.3]} 16. Be3 {[%clk 0:01:26]} 16...
Rc8 {[%clk 0:02:01.9]} 17. Bxc5 {[%clk 0:01:25.3]} 17... Rxc5 {[%clk 0:02:02.8]}
18. Qd2 {[%clk 0:01:25.9]} 18... Bb5 {[%clk 0:02:00.4]} 19. Qxd8 {[%clk
0:01:19.9]} 19... Rxd8 {[%clk 0:02:01.3]} 20. Rfd1 {[%clk 0:01:20.2]} 20...
Rxd1+ {[%clk 0:02:00.8]} 21. Rxd1 {[%clk 0:01:21.1]} 21... g6 {[%clk 0:02:01.4]}
22. Nd4 {[%clk 0:01:18.8]} 22... Be8 {[%clk 0:01:58.2]} 23. Nb3 {[%clk
0:01:12.8]} 23... Rc8 {[%clk 0:01:57.3]} 24. Be4 {[%clk 0:01:07.6]} 24... f5
{[%clk 0:01:55.9]} 25. Bd3 {[%clk 0:01:07.9]} 25... e5 {[%clk 0:01:55.1]} 26. f3
{[%clk 0:01:07.8]} 26... Kf7 {[%clk 0:01:50.9]} 27. Rc1 {[%clk 0:01:05.4]} 27...
Rxc1+ {[%clk 0:01:48.3]} 28. Nxc1 {[%clk 0:01:06.3]} 28... Ke6 {[%clk
0:01:49.2]} 29. Kf2 {[%clk 0:01:05.2]} 29... Bc6 {[%clk 0:01:48.8]} 30. e4
{[%clk 0:01:04.8]} 30... fxe4 {[%clk 0:01:46]} 31. Bxe4 {[%clk 0:01:05.7]} 31...
Bb5 {[%clk 0:01:45.5]} 32. Ke3 {[%clk 0:01:03.4]} 32... a5 {[%clk 0:01:45.3]}
33. Ne2 {[%clk 0:00:58]} 33... Bd7 {[%clk 0:01:39.6]} 34. Nc3 {[%clk 0:00:56.8]}
34... Kd6 {[%clk 0:01:38]} 35. Nd5 {[%clk 0:00:53.1]} 35... Kc5 {[%clk
0:01:37.6]} 36. Nf6 {[%clk 0:00:51.8]} 36... Be6 {[%clk 0:01:37.6]} 37. a3
{[%clk 0:00:41.7]} 37... Kc4 {[%clk 0:01:37.8]} 38. Bc2 {[%clk 0:00:40.9]} 38...
h6 {[%clk 0:01:35.8]} 39. g4 {[%clk 0:00:39.8]} 39... g5 {[%clk 0:01:35.3]} 40.
Ne4 {[%clk 0:00:33.6]} 40... b5 {[%clk 0:01:32.8]} 41. Nd2+ {[%clk 0:00:30.8]}
41... Kc5 {[%clk 0:01:30.7]} 42. Bb3 {[%clk 0:00:26.5]} 42... Bd7 {[%clk
0:01:30.6]} 43. Ke4 {[%clk 0:00:24.8]} 43... a4 {[%clk 0:01:29.3]} 44. Ba2
{[%clk 0:00:23.9]} 44... Kd6 {[%clk 0:01:29.6]} 45. Bd5 {[%clk 0:00:19.7]} 45...
Be8 {[%clk 0:01:29.4]} 46. Ba2 {[%clk 0:00:16.5]} 46... Bd7 {[%clk 0:01:25.7]}
47. Kd3 {[%clk 0:00:14.6]} 47... Be8 {[%clk 0:01:22.3]} 48. Ne4+ {[%clk
0:00:15]} 48... Kc6 {[%clk 0:01:21.8]} 49. Kc3 {[%clk 0:00:15.4]} 49... Bg6
{[%clk 0:01:19.2]} 50. Kb4 {[%clk 0:00:14.9]} 50... Kb6 {[%clk 0:01:19.3]} 51.
Nd6 {[%clk 0:00:12.6]} 51... Bd3 {[%clk 0:01:19]} 52. Bd5 {[%clk 0:00:12.2]}
52... Be2 {[%clk 0:01:19.1]} 53. Be4 {[%clk 0:00:11.2]} 53... Bf1 {[%clk
0:01:14.4]} 54. Nf7 {[%clk 0:00:10.9]} 54... Bc4 {[%clk 0:01:13.4]} 55. Nxe5
{[%clk 0:00:08.5]} 55... Be6 {[%clk 0:01:13.5]} 56. Ng6 {[%clk 0:00:06.7]} 56...
Bb3 {[%clk 0:01:10.7]} 57. h4 {[%clk 0:00:05.3]} 57... Bf7 {[%clk 0:01:06.9]}
58. Ne5 {[%clk 0:00:03.7]} 58... Be6 {[%clk 0:01:06.3]} 59. hxg5 {[%clk
0:00:03.9]} 59... hxg5 {[%clk 0:01:06.4]} 60. Nd3 {[%clk 0:00:04.3]} 60... Bc4
{[%clk 0:01:05.7]} 61. Ne5 {[%clk 0:00:02.2]} 61... Be6 {[%clk 0:01:05.2]} 62.
Bf5 {[%clk 0:00:01.6]} 62... Bd5 {[%clk 0:01:04.6]} 63. Ng6 {[%clk 0:00:02]}
63... Bxf3 {[%clk 0:01:04]} 64. Ne7 {[%clk 0:00:01.6]} 64... Bb7 {[%clk
0:01:00.9]} 65. Nc8+ {[%clk 0:00:02.5]} 65... Ka6 {[%clk 0:00:58.8]} 66. Nd6
{[%clk 0:00:02.7]} 66... Bc6 {[%clk 0:00:59.2]} 67. Nf7 {[%clk 0:00:03.4]} 67...
Bd5 {[%clk 0:00:57.8]} 68. Nxg5 {[%clk 0:00:03.9]} 68... Kb6 {[%clk 0:00:57.6]}
69. Ne4 {[%clk 0:00:04]} 69... Bg8 {[%clk 0:00:56.5]} 70. g5 {[%clk 0:00:04.2]}
70... Bf7 {[%clk 0:00:56.4]} 71. g6 {[%clk 0:00:04.5]} 71... Bg8 {[%clk
0:00:57.3]} 72. Ng5 {[%clk 0:00:05.1]} 72... Kc6 {[%clk 0:00:50.5]} 73. Be6
{[%clk 0:00:05.4]} 73... Bxe6 {[%clk 0:00:49.8]} 74. Nxe6 {[%clk 0:00:06.3]}
74... Kd6 {[%clk 0:00:50.3]} 75. g7 {[%clk 0:00:07]} 75... Ke7 {[%clk
0:00:46.4]} 76. g8=Q {[%clk 0:00:07.9]} 76... Kf6 {[%clk 0:00:46.7]} 77. Nc5
{[%clk 0:00:07]} 77... Ke7 {[%clk 0:00:46.7]} 78. Qe6+ {[%clk 0:00:06.7]} 78...
Kf8 {[%clk 0:00:47.2]} 79. Qd7 {[%clk 0:00:06.7]} 79... Kg8 {[%clk 0:00:47.4]}
80. Ne6 {[%clk 0:00:07.3]} 80... Kh8 {[%clk 0:00:47.9]} 81. Qg7# {[%clk
0:00:08.2]} 1-0

[Event "Early-Titled-Tuesday-Blitz-February-06-2024"]
[Site "Chess.com"]
[Date "2024.02.06"]
[Round "3"]
[White "Suleyman_Chess06"]
[Black "Marcan2b"]
[Result "0-1"]
[WhiteElo "2659"]
[BlackElo "3023"]
[TimeControl "180+1"]
[EndTime "8:29:19 PST"]
[Termination "Marcan2b won on time"]

1. Nf3 {[%clk 0:02:57.8]} 1... d5 {[%clk 0:02:59]} 2. g3 {[%clk 0:02:58.7]} 2...
Nf6 {[%clk 0:02:57.8]} 3. Bg2 {[%clk 0:02:59.4]} 3... g6 {[%clk 0:02:56.3]} 4.
O-O {[%clk 0:02:59.9]} 4... Bg7 {[%clk 0:02:57]} 5. d4 {[%clk 0:03:00.7]} 5...
O-O {[%clk 0:02:57.7]} 6. c4 {[%clk 0:02:59.4]} 6... dxc4 {[%clk 0:02:55.7]} 7.
Na3 {[%clk 0:02:59.3]} 7... c3 {[%clk 0:02:53.9]} 8. bxc3 {[%clk 0:02:59.5]}
8... c5 {[%clk 0:02:54.6]} 9. Re1 {[%clk 0:03:00]} 9... Nc6 {[%clk 0:02:54.7]}
10. e4 {[%clk 0:02:57.7]} 10... cxd4 {[%clk 0:02:52.3]} 11. cxd4 {[%clk
0:02:58]} 11... Bg4 {[%clk 0:02:53]} 12. Bb2 {[%clk 0:02:46.1]} 12... Nd7 {[%clk
0:02:48]} 13. e5 {[%clk 0:02:44.1]} 13... Nb6 {[%clk 0:02:46.7]} 14. h3 {[%clk
0:02:41.8]} 14... Be6 {[%clk 0:02:46.1]} 15. Nb5 {[%clk 0:02:36.1]} 15... Rc8
{[%clk 0:02:43.6]} 16. Nc3 {[%clk 0:02:34.8]} 16... Nb4 {[%clk 0:02:41.7]} 17.
a3 {[%clk 0:02:30.6]} 17... N4d5 {[%clk 0:02:40.5]} 18. Ne4 {[%clk 0:02:18.9]}
18... Nc4 {[%clk 0:02:38.4]} 19. Qe2 {[%clk 0:02:19.1]} 19... Bf5 {[%clk
0:02:25.4]} 20. Rac1 {[%clk 0:02:07.2]} 20... Nxb2 {[%clk 0:02:08.3]} 21. Qxb2
{[%clk 0:02:08.1]} 21... Rxc1 {[%clk 0:02:07.3]} 22. Qxc1 {[%clk 0:02:09]} 22...
b6 {[%clk 0:02:06.1]} 23. Nc3 {[%clk 0:01:55.2]} 23... Nxc3 {[%clk 0:01:59.8]}
24. Qxc3 {[%clk 0:01:55.1]} 24... Qd7 {[%clk 0:02:00.7]} 25. g4 {[%clk
0:01:48.4]} 25... Rc8 {[%clk 0:02:00.1]} 26. Qe3 {[%clk 0:01:46]} 26... Be6
{[%clk 0:01:59.3]} 27. Rc1 {[%clk 0:01:46.1]} 27... Bd5 {[%clk 0:01:57.1]} 28.
Rxc8+ {[%clk 0:01:34.9]} 28... Qxc8 {[%clk 0:01:57.9]} 29. Ne1 {[%clk
0:01:35.4]} 29... Bxg2 {[%clk 0:01:55.8]} 30. Nxg2 {[%clk 0:01:36.3]} 30... e6
{[%clk 0:01:56.7]} 31. Nf4 {[%clk 0:01:19.2]} 31... Bh6 {[%clk 0:01:52.6]} 32.
h4 {[%clk 0:01:18.6]} 32... Qc4 {[%clk 0:01:49]} 33. g5 {[%clk 0:01:16.9]} 33...
Bf8 {[%clk 0:01:48.6]} 34. d5 {[%clk 0:00:55.7]} 34... exd5 {[%clk 0:01:46.4]}
35. e6 {[%clk 0:00:56]} 35... Qe4 {[%clk 0:01:45.5]} 36. Nxd5 {[%clk 0:00:30.9]}
36... Qxe3 {[%clk 0:01:23.3]} 37. fxe3 {[%clk 0:00:27]} 37... fxe6 {[%clk
0:01:19.2]} 38. Nf6+ {[%clk 0:00:27.4]} 38... Kf7 {[%clk 0:01:19.2]} 39. a4
{[%clk 0:00:27.8]} 39... h6 {[%clk 0:01:16.9]} 40. Ne4 {[%clk 0:00:28.1]} 40...
hxg5 {[%clk 0:01:15.8]} 41. hxg5 {[%clk 0:00:26.6]} 41... e5 {[%clk 0:01:15.1]}
42. Kf2 {[%clk 0:00:25.3]} 42... Ke6 {[%clk 0:01:15.2]} 43. Kf3 {[%clk
0:00:22.4]} 43... Be7 {[%clk 0:01:14.7]} 44. Kg4 {[%clk 0:00:20.5]} 44... a6
{[%clk 0:01:12.6]} 45. Nc3 {[%clk 0:00:18.6]} 45... Bb4 {[%clk 0:01:11.9]} 46.
Ne2 {[%clk 0:00:17.6]} 46... b5 {[%clk 0:01:10]} 47. axb5 {[%clk 0:00:18.1]}
47... axb5 {[%clk 0:01:10.9]} 48. Kf3 {[%clk 0:00:16.4]} 48... Be7 {[%clk
0:01:07.9]} 49. Ke4 {[%clk 0:00:15.6]} 49... b4 {[%clk 0:01:07.5]} 50. Nc1
{[%clk 0:00:15.2]} 50... Bxg5 {[%clk 0:00:51.2]} 51. Nd3 {[%clk 0:00:14.9]}
51... Be7 {[%clk 0:00:51.9]} 52. Nxe5 {[%clk 0:00:15]} 52... b3 {[%clk
0:00:52.2]} 53. Nc4 {[%clk 0:00:08.3]} 53... Bf6 {[%clk 0:00:50]} 54. Kd3 {[%clk
0:00:08.4]} 54... g5 {[%clk 0:00:49.2]} 55. Nd2 {[%clk 0:00:04.7]} 55... b2
{[%clk 0:00:48.4]} 56. Kc2 {[%clk 0:00:05.4]} 56... g4 {[%clk 0:00:45.7]} 57.
Ne4 {[%clk 0:00:05]} 57... Be5 {[%clk 0:00:43.7]} 58. Nf2 {[%clk 0:00:01.9]}
58... g3 {[%clk 0:00:43.6]} 59. Nh3 {[%clk 0:00:02.1]} 59... Kf5 {[%clk
0:00:43.1]} 60. e4+ {[%clk 0:00:01.7]} 60... Kxe4 {[%clk 0:00:41.5]} 61. Kb1
{[%clk 0:00:02.4]} 61... g2 {[%clk 0:00:40.4]} 62. Ng1 {[%clk 0:00:02.6]} 62...
Bd4 {[%clk 0:00:38.4]} 63. Ne2 {[%clk 0:00:02.8]} 63... Ke3 {[%clk 0:00:37.1]}
64. Ng1 {[%clk 0:00:02.7]} 64... Kd3 {[%clk 0:00:32.9]} 65. Nf3 {[%clk
0:00:02.4]} 65... Kc3 {[%clk 0:00:32.6]} 66. Ne1 {[%clk 0:00:01.5]} 66... g1=Q
{[%clk 0:00:31.6]} 0-1

[Event "Early-Titled-Tuesday-Blitz-February-06-2024"]
[Site "Chess.com"]
[Date "2024.02.06"]
[Round "3"]
[White "Ducke13"]
[Black "Chessdreamer2020"]
[Result "0-1"]
[WhiteElo "2291"]
[BlackElo "2546"]
[TimeControl "180+1"]
[EndTime "8:29:26 PST"]
[Termination "Chessdreamer2020 won by checkmate"]

1. d4 {[%clk 0:02:51.6]} 1... d6 {[%clk 0:03:00]} 2. g3 {[%clk 0:02:47.3]} 2...
e5 {[%clk 0:02:59.4]} 3. dxe5 {[%clk 0:02:48.2]} 3... dxe5 {[%clk 0:03:00.3]} 4.
Qxd8+ {[%clk 0:02:47.2]} 4... Kxd8 {[%clk 0:03:01.2]} 5. f4 {[%clk 0:02:47.3]}
5... Nc6 {[%clk 0:02:56.2]} 6. Nf3 {[%clk 0:02:27.6]} 6... Bd6 {[%clk
0:02:48.6]} 7. Bd2 {[%clk 0:02:12.7]} 7... Bf5 {[%clk 0:02:47.9]} 8. Ng5 {[%clk
0:01:58.3]} 8... Ke7 {[%clk 0:02:44.9]} 9. e4 {[%clk 0:01:57.7]} 9... Bg4 {[%clk
0:02:43.1]} 10. Nc3 {[%clk 0:01:50.5]} 10... f6 {[%clk 0:02:39.1]} 11. Nh3
{[%clk 0:01:37.4]} 11... Nd4 {[%clk 0:02:36.3]} 12. Nd5+ {[%clk 0:01:13.9]}
12... Kf7 {[%clk 0:02:29.8]} 13. Ne3 {[%clk 0:01:14.2]} 13... Nf3+ {[%clk
0:02:16.2]} 14. Kf2 {[%clk 0:01:12.3]} 14... Nxd2 {[%clk 0:02:11.1]} 15. Nxg4
{[%clk 0:01:12]} 15... Nxe4+ {[%clk 0:02:11.6]} 16. Ke3 {[%clk 0:01:09.1]} 16...
Nc5 {[%clk 0:02:04.9]} 17. Bc4+ {[%clk 0:01:07.4]} 17... Ke7 {[%clk 0:02:01.9]}
18. Rhf1 {[%clk 0:01:03.3]} 18... h5 {[%clk 0:02:00.8]} 19. fxe5 {[%clk
0:01:01.4]} 19... fxe5 {[%clk 0:01:58.7]} 20. Rf7+ {[%clk 0:01:00.5]} 20... Ke8
{[%clk 0:01:58.5]} 21. Ngf2 {[%clk 0:00:49.4]} 21... Nf6 {[%clk 0:01:51.9]} 22.
Ng5 {[%clk 0:00:46.6]} 22... h4 {[%clk 0:01:20.8]} 23. Rxg7 {[%clk 0:00:42.2]}
23... hxg3 {[%clk 0:01:19.9]} 24. hxg3 {[%clk 0:00:43.1]} 24... Nh5 {[%clk
0:01:11.2]} 25. Rg6 {[%clk 0:00:21]} 25... Nxg3 {[%clk 0:01:09.1]} 26. Rg1
{[%clk 0:00:18.4]} 26... Nf5+ {[%clk 0:01:08.1]} 27. Kd2 {[%clk 0:00:16]} 27...
Rd8 {[%clk 0:00:58.9]} 28. Ke1 {[%clk 0:00:15]} 28... Rd7 {[%clk 0:00:55.2]} 29.
Ne6 {[%clk 0:00:14]} 29... Rdh7 {[%clk 0:00:48.7]} 30. Ng4 {[%clk 0:00:13.7]}
30... Nxe6 {[%clk 0:00:45.7]} 31. Bxe6 {[%clk 0:00:13.2]} 31... Nh4 {[%clk
0:00:37.4]} 32. Nf6+ {[%clk 0:00:12.9]} 32... Ke7 {[%clk 0:00:36.9]} 33. Ng8+
{[%clk 0:00:08.9]} 33... Kd8 {[%clk 0:00:33.9]} 34. R6g3 {[%clk 0:00:07.8]}
34... e4 {[%clk 0:00:31.1]} 35. Rh3 {[%clk 0:00:05.5]} 35... Nf3+ {[%clk
0:00:31.2]} 36. Rxf3 {[%clk 0:00:04.6]} 36... exf3 {[%clk 0:00:32.1]} 37. Nf6
{[%clk 0:00:04.5]} 37... Rh1 {[%clk 0:00:26.1]} 38. Rxh1 {[%clk 0:00:03.6]}
38... Rxh1+ {[%clk 0:00:27]} 39. Kf2 {[%clk 0:00:04.5]} 39... Rh3 {[%clk
0:00:27.4]} 40. Bxh3 {[%clk 0:00:04.3]} 40... Bc5+ {[%clk 0:00:27.2]} 41. Kxf3
{[%clk 0:00:04.5]} 41... Bd4 {[%clk 0:00:28.1]} 42. Nd5 {[%clk 0:00:03.9]} 42...
Bxb2 {[%clk 0:00:27.9]} 43. Ke4 {[%clk 0:00:04.3]} 43... c6 {[%clk 0:00:28.2]}
44. Nb4 {[%clk 0:00:04.2]} 44... Bc3 {[%clk 0:00:27.3]} 45. Nd3 {[%clk
0:00:04.6]} 45... Kc7 {[%clk 0:00:27.7]} 46. Nf4 {[%clk 0:00:04.4]} 46... a5
{[%clk 0:00:28]} 47. Be6 {[%clk 0:00:04.4]} 47... Kb6 {[%clk 0:00:27.6]} 48. Nd3
{[%clk 0:00:04]} 48... Bg7 {[%clk 0:00:26.9]} 49. Bc4 {[%clk 0:00:04.4]} 49...
Kc7 {[%clk 0:00:26]} 50. a4 {[%clk 0:00:04.3]} 50... Kd6 {[%clk 0:00:26]} 51.
Nf4 {[%clk 0:00:04.2]} 51... Bf6 {[%clk 0:00:25.3]} 52. Bd3 {[%clk 0:00:04.4]}
52... Kc5 {[%clk 0:00:25.1]} 53. Ne6+ {[%clk 0:00:05]} 53... Kb4 {[%clk
0:00:25.2]} 54. Nc7 {[%clk 0:00:03.5]} 54... Kxa4 {[%clk 0:00:24.9]} 55. Ne8
{[%clk 0:00:04.2]} 55... Be7 {[%clk 0:00:24.5]} 56. Kd4 {[%clk 0:00:03.7]} 56...
Kb4 {[%clk 0:00:24.6]} 57. Nc7 {[%clk 0:00:02.8]} 57... Bf6+ {[%clk 0:00:24.3]}
58. Ke3 {[%clk 0:00:02.2]} 58... a4 {[%clk 0:00:23.8]} 59. Kd2 {[%clk
0:00:02.2]} 59... a3 {[%clk 0:00:23.6]} 60. c3+ {[%clk 0:00:02.2]} 60... Kb3
{[%clk 0:00:23.5]} 61. Bb1 {[%clk 0:00:01.8]} 61... Kb2 {[%clk 0:00:23.2]} 62.
Bd3 {[%clk 0:00:01.7]} 62... a2 {[%clk 0:00:23.5]} 63. Ne8 {[%clk 0:00:01.5]}
63... Bh8 {[%clk 0:00:23]} 64. Bc4 {[%clk 0:00:01.7]} 64... a1=Q {[%clk
0:00:22.7]} 65. Nd6 {[%clk 0:00:02.6]} 65... Qc1+ {[%clk 0:00:22.7]} 66. Kd3
{[%clk 0:00:03]} 66... Qxc3+ {[%clk 0:00:23]} 67. Ke4 {[%clk 0:00:03.1]} 67...
Qd4+ {[%clk 0:00:23.4]} 68. Kf5 {[%clk 0:00:02.9]} 68... Qxd6 {[%clk 0:00:23.8]}
69. Be6 {[%clk 0:00:03.7]} 69... Qe5+ {[%clk 0:00:23.6]} 70. Kg6 {[%clk
0:00:04.3]} 70... Qxe6+ {[%clk 0:00:23.8]} 71. Kh7 {[%clk 0:00:04.6]} 71... Qg4
{[%clk 0:00:23.3]} 72. Kh6 {[%clk 0:00:03.4]} 72... c5 {[%clk 0:00:24.2]} 73.
Kh7 {[%clk 0:00:03.3]} 73... c4 {[%clk 0:00:25.1]} 74. Kh6 {[%clk 0:00:03.7]}
74... c3 {[%clk 0:00:26]} 75. Kh7 {[%clk 0:00:04.5]} 75... Qg7# {[%clk
0:00:26.1]} 0-1

[Event "Early-Titled-Tuesday-Blitz-February-06-2024"]
[Site "Chess.com"]
[Date "2024.02.06"]
[Round "3"]
[White "Capiberibe"]
[Black "BashirliSaadat"]
[Result "1-0"]
[WhiteElo "2100"]
[BlackElo "2352"]
[TimeControl "180+1"]
[EndTime "8:29:30 PST"]
[Termination "Capiberibe won by checkmate"]

1. e4 {[%clk 0:03:00.9]} 1... c6 {[%clk 0:02:58.9]} 2. d4 {[%clk 0:02:59.7]}
2... d5 {[%clk 0:02:58.1]} 3. Nd2 {[%clk 0:02:59.6]} 3... dxe4 {[%clk
0:02:57.3]} 4. Nxe4 {[%clk 0:03:00.5]} 4... Nf6 {[%clk 0:02:57.8]} 5. Nxf6+
{[%clk 0:03:00.1]} 5... exf6 {[%clk 0:02:58.5]} 6. c3 {[%clk 0:02:58.8]} 6...
Bd6 {[%clk 0:02:58.9]} 7. Bd3 {[%clk 0:02:57.8]} 7... O-O {[%clk 0:02:58.7]} 8.
Ne2 {[%clk 0:02:57.5]} 8... Re8 {[%clk 0:02:58.9]} 9. Qc2 {[%clk 0:02:57.2]}
9... h6 {[%clk 0:02:57.2]} 10. Be3 {[%clk 0:02:56.3]} 10... Bg4 {[%clk
0:02:56.6]} 11. O-O-O {[%clk 0:02:51.7]} 11... Nd7 {[%clk 0:02:53.8]} 12. Kb1
{[%clk 0:02:50.1]} 12... Qc7 {[%clk 0:02:51.7]} 13. h3 {[%clk 0:02:48.6]} 13...
Bxe2 {[%clk 0:02:49.1]} 14. Bxe2 {[%clk 0:02:48.4]} 14... Bf4 {[%clk 0:02:48.3]}
15. Bxf4 {[%clk 0:02:41.4]} 15... Qxf4 {[%clk 0:02:48.2]} 16. Bf3 {[%clk
0:02:39.5]} 16... Re7 {[%clk 0:02:42.3]} 17. Rde1 {[%clk 0:02:30.3]} 17... Rae8
{[%clk 0:02:40.2]} 18. Qd1 {[%clk 0:02:30.2]} 18... Nb6 {[%clk 0:02:32.9]} 19.
Rxe7 {[%clk 0:02:28.8]} 19... Rxe7 {[%clk 0:02:32.4]} 20. Re1 {[%clk 0:02:29]}
20... Qd6 {[%clk 0:02:21.9]} 21. Rxe7 {[%clk 0:02:25.3]} 21... Qxe7 {[%clk
0:02:22.8]} 22. Qe2 {[%clk 0:02:25.2]} 22... Kf8 {[%clk 0:02:22.6]} 23. Qxe7+
{[%clk 0:02:24.1]} 23... Kxe7 {[%clk 0:02:23.5]} 24. b3 {[%clk 0:02:23.4]} 24...
f5 {[%clk 0:02:21]} 25. Kc2 {[%clk 0:02:22.8]} 25... Kd6 {[%clk 0:02:20.7]} 26.
Kd3 {[%clk 0:02:20.3]} 26... Nd7 {[%clk 0:02:19.3]} 27. g3 {[%clk 0:02:16.5]}
27... Nf6 {[%clk 0:02:18.2]} 28. Ke3 {[%clk 0:02:12.1]} 28... b6 {[%clk
0:02:16.2]} 29. c4 {[%clk 0:02:07.5]} 29... g6 {[%clk 0:02:10]} 30. h4 {[%clk
0:02:02]} 30... Nd7 {[%clk 0:01:53.7]} 31. Kd3 {[%clk 0:01:55.6]} 31... c5
{[%clk 0:01:51.4]} 32. d5 {[%clk 0:01:40.3]} 32... Ke5 {[%clk 0:01:48.3]} 33.
Bg2 {[%clk 0:01:31.9]} 33... Nf6 {[%clk 0:01:45.1]} 34. f4+ {[%clk 0:01:30.4]}
34... Kd6 {[%clk 0:01:43.9]} 35. Bf3 {[%clk 0:01:30.1]} 35... Ke7 {[%clk
0:01:40.1]} 36. Ke3 {[%clk 0:01:29.3]} 36... Kd6 {[%clk 0:01:32]} 37. Kd3 {[%clk
0:01:29.3]} 37... a6 {[%clk 0:01:30.5]} 38. Ke3 {[%clk 0:01:28.9]} 38... Nd7
{[%clk 0:01:19]} 39. Kd3 {[%clk 0:01:27.2]} 39... b5 {[%clk 0:01:11.7]} 40. Ke3
{[%clk 0:01:17]} 40... Nb6 {[%clk 0:01:07.3]} 41. Kd3 {[%clk 0:01:15.1]} 41...
f6 {[%clk 0:00:45]} 42. Kc3 {[%clk 0:00:59.9]} 42... Nd7 {[%clk 0:00:32.9]} 43.
Kd3 {[%clk 0:00:58.1]} 43... Nb6 {[%clk 0:00:26.2]} 44. Kc3 {[%clk 0:00:58]}
44... Nc8 {[%clk 0:00:24.5]} 45. Kd3 {[%clk 0:00:57]} 45... Ne7 {[%clk
0:00:23.3]} 46. Ke3 {[%clk 0:00:54.8]} 46... Nc8 {[%clk 0:00:20.2]} 47. Kd3
{[%clk 0:00:54.9]} 47... bxc4+ {[%clk 0:00:19]} 48. bxc4 {[%clk 0:00:53.4]}
48... Kc7 {[%clk 0:00:18.2]} 49. Bd1 {[%clk 0:00:44.2]} 49... Nd6 {[%clk
0:00:17.5]} 50. Bf3 {[%clk 0:00:41.5]} 50... Kb6 {[%clk 0:00:18]} 51. Kc3 {[%clk
0:00:41.5]} 51... Ka5 {[%clk 0:00:15.7]} 52. Kb3 {[%clk 0:00:41.1]} 52... Nc8
{[%clk 0:00:13.3]} 53. Be2 {[%clk 0:00:38.4]} 53... Nd6 {[%clk 0:00:12.4]} 54.
Bf3 {[%clk 0:00:37.9]} 54... Kb6 {[%clk 0:00:12.6]} 55. Kc3 {[%clk 0:00:36.4]}
55... g5 {[%clk 0:00:10.7]} 56. Kb3 {[%clk 0:00:34]} 56... Kc7 {[%clk
0:00:07.5]} 57. Kc3 {[%clk 0:00:31.9]} 57... Kb6 {[%clk 0:00:07.5]} 58. Kb3
{[%clk 0:00:31]} 58... g4 {[%clk 0:00:05.3]} 59. Bg2 {[%clk 0:00:30.1]} 59...
Ne8 {[%clk 0:00:03.7]} 60. Bf1 {[%clk 0:00:29.3]} 60... Kc7 {[%clk 0:00:03.9]}
61. Bd3 {[%clk 0:00:28.8]} 61... Ng7 {[%clk 0:00:03.4]} 62. Ka4 {[%clk
0:00:28.3]} 62... Kb6 {[%clk 0:00:03.3]} 63. a3 {[%clk 0:00:27.6]} 63... a5
{[%clk 0:00:02.8]} 64. d6 {[%clk 0:00:25.9]} 64... Kc6 {[%clk 0:00:02.3]} 65.
Kxa5 {[%clk 0:00:26.5]} 65... Kxd6 {[%clk 0:00:01.9]} 66. Kb6 {[%clk 0:00:27]}
66... Ne8 {[%clk 0:00:02.6]} 67. a4 {[%clk 0:00:26.8]} 67... Nc7 {[%clk
0:00:02.6]} 68. Bxf5 {[%clk 0:00:25]} 68... Na8+ {[%clk 0:00:03.2]} 69. Kb7
{[%clk 0:00:23.9]} 69... Nc7 {[%clk 0:00:03.7]} 70. a5 {[%clk 0:00:24]} 70... h5
{[%clk 0:00:04.1]} 71. Bg6 {[%clk 0:00:22.7]} 71... Nd5 {[%clk 0:00:04.5]} 72.
cxd5 {[%clk 0:00:21.5]} 72... Kxd5 {[%clk 0:00:04.7]} 73. a6 {[%clk 0:00:21.9]}
73... Ke6 {[%clk 0:00:04.5]} 74. a7 {[%clk 0:00:21.9]} 74... f5 {[%clk
0:00:05.2]} 75. a8=Q {[%clk 0:00:22.3]} 75... c4 {[%clk 0:00:05.9]} 76. Qe8+
{[%clk 0:00:22.6]} 76... Kd6 {[%clk 0:00:06]} 77. Bxf5 {[%clk 0:00:22.9]} 77...
c3 {[%clk 0:00:06.2]} 78. Qe5# {[%clk 0:00:23.3]} 1-0